Cogmind - Beta 9.3 @@@ ROGUE MODE // 2019.12.21 @ 18:42:36 // Winter2019/RPGLIKE Player: stormcleaver5 Result: Destroyed by D-53 Grenadier with Mini Grenade Launcher Performance ------------- Evolutions (0) 0 Regions Visited (2) 400 Robots Destroyed (8) 40 Value Destroyed (62) 62 Prototype IDs (0) 0 Alien Tech Used (0) 0 Bonus (0) 0 TOTAL SCORE: 502 Bonus ------- None Cogmind --------- Core Integrity 0/600 Matter 291/300 Energy 250/250 System Corruption 0% Temperature Cool (0) Movement Rolling (100) Location -10/Mines Parts ------- > --- POWER (1) -------- Ion Engine > --- PROPULSION (1) --- Compact Wheel > --- UTILITY (1) ------ (None) > --- WEAPON (1) ------- Assault Rifle > --- INVENTORY (1) ---- Grenade Launcher Peak State ------------ > --- POWER ------------ Ion Engine > --- PROPULSION ------- Compact Wheel > --- UTILITY ---------- (None) > --- WEAPON ----------- Light Assault Rifle > --- INVENTORY -------- (None) [Rating: 3] Favorites ----------- Power Ion Engine Engine Ion Engine Propulsion Compact Wheel Wheel Compact Wheel Utility None Weapon Assault Rifle Ballistic Gun Assault Rifle Launcher Grenade Launcher Build | -11 -10 -10 ------- Run | Scr Mat Min Slots Evolved . | . . . Power . | . . . Propulsion . | . . . Utility . | . . . Weapon . | . . . Parts Attached 6 | 4 2 . Power 1 | 1 . . Engine 1 | 1 . . Core . | . . . Reactor . | . . . Propulsion 1 | 1 . . Treads . | . . . Leg . | . . . Wheel 1 | 1 . . Hover . | . . . Flight . | . . . Utility . | . . . Device . | . . . Storage . | . . . Processor . | . . . Hackware . | . . . Protection . | . . . Artifact . | . . . Weapon 4 | 2 2 . Energy Gun . | . . . Energy Cannon . | . . . Ballistic Gun 3 | 2 1 . Ballistic Cannon . | . . . Launcher 1 | . 1 . Special Weapon . | . . . Impact Weapon . | . . . Slashing Weapon . | . . . Piercing Weapon . | . . . Special Melee Weapon . | . . . Unidentified Prototypes . | . . . Parts Lost . | . . . Power . | . . . Propulsion . | . . . Utility . | . . . Weapon . | . . . Highest Loss Streak . | . . . Average Slot Usage (%) 75 | . 75 75 Engine 25 | . 25 25 Wheel 25 | . 25 25 Ballistic Gun 24 | . 23 25 Naked Turns . | . . . Heaviest Build 7 | 7 7 7 Greatest Support 16 | 16 16 16 Greatest Overweight (x) . | . . . Average Overweight (x) . | . . . Largest Inventory Capacity 1 | . 1 1 Average Capacity . | . . 1 Most Carried 1 | . 1 1 Average Carried . | . . 1 Final Capacity 1 | . 1 1 Final Carried 1 | . 1 1 Class Distribution -------------------- 100% | Mutant Dominant Class ---------------- Mutant | -10/Materials Mutant | -10/Mines Resources | -11 -10 -10 ----------- Run | Scr Mat Min Matter Collected 312 | 240 46 26 Remotely . | . . . Salvage Created 98 | . 74 24 Parts 11 | . 10 1 Haulers Intercepted . | . . . Recyclers Shooed . | . . . Parts Field Recycled . | . . . Retrieved Matter . | . . . Parts Self-Destructed . | . . . Prevented . | . . . Kills | -11 -10 -10 ------- Run | Scr Mat Min Combat Hostiles Destroyed 6 | . 6 . Guns 3 | . 3 . AOE 3 | . 3 . Classes Destroyed 2 | . 2 . Worker 2 | . 1 1 Swarmer 6 | . 6 . Best Kill Streak 4 | . 4 1 Combat Bots Only 3 | . 3 . Max Kills in Single Turn 3 | . 3 1 Gunslinging . | . . . Exploded 3 | . 3 . Melee . | . . . Uniques/NPCs Destroyed . | . . . Combat | -11 -10 -10 -------- Run | Scr Mat Min Damage Taken 766 | . 156 610 Core 663 | . 130 533 Absorbed by Shields . | . . . Redirected to Core 355 | . 83 272 Core Remaining (%) 100 | 100 . . Volleys Fired 18 | . 12 6 Largest 1 | . 1 1 Hottest 30 | . 30 20 Shots Fired 18 | . 12 6 Gun 17 | . 11 6 Cannon . | . . . Launcher 1 | . 1 . Special . | . . . Kinetic 17 | . 11 6 Thermal . | . . . Explosive 1 | . 1 . Electromagnetic . | . . . Robot Hit Streak 4 | . 4 3 Robot Miss Streak 2 | . 1 2 Penetration Max . | . . . Secondary Targets . | . . . Shots Hit Robots 11 | . 7 4 Core Hits 9 | . 7 2 Critical Hits . | . . . Critical Kills . | . . . Critical Parts Destroyed . | . . . Melee Attacks . | . . . Impact . | . . . Slashing . | . . . Piercing . | . . . Sneak Attacks . | . . . Combat Hostiles . | . . . Follow-up Attacks . | . . . Damage Inflicted 282 | . 215 67 Guns 150 | . 83 67 Cannons . | . . . Explosions 132 | . 132 . Melee . | . . . Ramming . | . . . Kinetic 150 | . 83 67 Thermal . | . . . Explosive 132 | . 132 . Electromagnetic . | . . . Impact . | . . . Slashing . | . . . Piercing . | . . . Highest Corruption . | . . . Average Corruption . | . . . Corruption Purged . | . . . Overload Shots . | . . . Overflow Damage . | . . . Projectiles . | . . . Explosions . | . . . Melee . | . . . Knockbacks . | . . . Impact . | . . . Kinetic . | . . . Secondary . | . . . Self-Inflicted Damage . | . . . Shots . | . . . Rammed . | . . . Targets Rammed . | . . . Kicked . | . . . Crushed . | . . . Highest Temperature . | . . . Average Temperature . | . . . Received Heat Transfer . | . . . Siege Activations . | . . . Robots Corrupted . | . . . Combat Hostiles . | . . . Parts Fried . | . . . Impact Corruptions . | . . . Robots Melted . | . . . Combat Hostiles . | . . . Parts Melted . | . . . Heat Transferred . | . . . Parts Sabotaged . | . . . Parts Stolen . | . . . Parts Stripped . | . . . Power Chain Reactions . | . . . Missiles Intercepted . | . . . Alert | -11 -10 -10 ------- Run | Scr Mat Min Peak Influence 175 | . 175 72 Average Influence 49 | . 54 70 Maximum Alert Level . | . . . Low Security (%) 100 | 100 100 100 Level 1 . | . . . Level 2 . | . . . Level 3 . | . . . Level 4 . | . . . Level 5 . | . . . High Security . | . . . Max Security . | . . . Squads Dispatched . | . . . Investigation . | . . . Extermination . | . . . Reinforcement . | . . . Assault . | . . . Garrison . | . . . Intercept . | . . . Construction Impeded . | . . . Haulers Reinforced . | . . . Stealth | -11 -10 -10 --------- Run | Scr Mat Min Distress Signals 1 | . . 1 Communications Jammed . | . . . Distress Signals . | . . . Times Spotted 20 | . 11 9 Peak Tracking Total 4 | . 4 3 Tactical Retreats . | . . . Traps | -11 -10 -10 ------- Run | Scr Mat Min Traps Triggered . | . . . Indirectly . | . . . Trap Hack Attempts . | . . . Triggered . | . . . Disarmed . | . . . Reprogrammed . | . . . Reused . | . . . Traps Extracted . | . . . Installed . | . . . Triggered . | . . . Machines | -11 -10 -10 ---------- Run | Scr Mat Min Machines Disabled . | . . . Max in Single Turn . | . . . Machines Sabotaged . | . . . Garrisons Compromised . | . . . Overloaded Fab Kills . | . . . Fab Network Shutdowns . | . . . Hacking | -11 -10 -10 --------- Run | Scr Mat Min Machines Accessed 1 | . 1 . Terminals 1 | . 1 . Fabricators . | . . . Repair Stations . | . . . Recycling Units . | . . . Scanalyzers . | . . . Garrison Access . | . . . Total Hacks 1 | . 1 . Successful 1 | . 1 . Failed . | . . . Catastrophic . | . . . Database Lockouts . | . . . Manual 4 | . 4 . Terminals 1 | . 1 . Fabricators . | . . . Repair Stations . | . . . Recycling Units . | . . . Scanalyzers . | . . . Garrison Access . | . . . Terminal Hacks . | . . . Fabricator Hacks . | . . . Repair Station Hacks . | . . . Recycling Unit Hacks . | . . . Scanalyzer . | . . . Garrison Access Hacks . | . . . Unauthorized Hacks 2 | . 2 . Terminals 1 | . 1 . Track 1 | . 1 . Fabricators . | . . . Repair Stations . | . . . Recycling Units . | . . . Scanalyzers . | . . . Garrison Access . | . . . Data Cores Recovered . | . . . Used . | . . . Hacking Detections 1 | . 1 . Full Trace Events . | . . . Feedback Events . | . . . Feedback Blocked . | . . . Robot Schematics Acquired . | . . . Robots Built . | . . . Matter . | . . . Time . | . . . Total Robot Build Rating . | . . . Part Schematics Acquired . | . . . Parts Built . | . . . Matter . | . . . Time . | . . . Total Part Build Rating . | . . . Parts Repaired . | . . . Time . | . . . Parts Recycled . | . . . Recycled Matter . | . . . Retrieved Matter . | . . . Retrieved Components . | . . . Parts Scanalyzed . | . . . Part Schematics Acquired . | . . . Parts Damaged . | . . . Bothacking | -11 -10 -10 ------------ Run | Scr Mat Min Used RIF Installer . | . . . Robots Hacked . | . . . Non-combat . | . . . Combat . | . . . Robot Hacks Applied . | . . . Relay Couplers Released . | . . . Robots Rewired . | . . . Allies Hacked . | . . . Hacks Repelled . | . . . Allies | -11 -10 -10 -------- Run | Scr Mat Min Total Allies . | . . . Largest Group . | . . . Highest-Rated Group . | . . . Highest-Rated Ally . | . . . Total Orders . | . . . Ally Attacks . | . . . Total Damage . | . . . Kills . | . . . Allies Corrupted . | . . . Allies Melted . | . . . Intel | -11 -10 -10 ------- Run | Scr Mat Min Robot Analysis Total . | . . . Derelict Logs Recovered . | . . . Drone Launches . | . . . Drone Recoveries . | . . . Exploration | -11 -10 -10 ------------- Run | Scr Mat Min Turns Passed 349 | 52 227 70 Spaces Moved 302 | 49 196 57 Core 5 | 5 . . Treads . | . . . Legs . | . . . Wheels 297 | 44 196 57 Hover . | . . . Flight . | . . . Fastest Speed 50 | 50 100 100 Average Speed 99 | 94 100 100 Slowest Speed 100 | 100 100 100 Overloaded Moves . | . . . Propulsion Burnouts . | . . . Robots Hopped . | . . . Cave-ins Triggered . | . . . Exploration Rate (%) 20 | 3 45 14 Regions Visited 2 Branch Regions 1 Pre-discovered Areas . | . . . Known Exits Taken . | . . . Unknown Exits Taken 2 | 1 1 . Scrap Searched . | . . . Spaces Dug . | . . . Terrain Destroyed 7 | . 7 . Melee . | . . . Projectile . | . . . AOE 7 | . 7 . Actions | -11 -10 -10 --------- Run | Scr Mat Min Total 331 | 53 214 64 Wait 1 | . . 1 Move 300 | 48 195 57 Hop . | . . . Pick Up 1 | . 1 . Fast Attach 4 | 4 . . Attach . | . . . Detach . | . . . Swap 2 | . 2 . Drop 1 | 1 . . Fire 18 | . 12 6 Melee . | . . . Ram . | . . . Kick . | . . . Crush . | . . . Escape Stasis . | . . . Rewire . | . . . Trap . | . . . Miscellaneous 4 | . 4 . Route ------- -11/Scrapyard -10/Materials (discovered 2 exits: [*Mat] / [*Min]) -10/Mines History --------- Turn | Location | Event 6 | -11/Scrapyard | Discovered new exit (range 16) 53 | -11/Scrapyard | Entered Materials 174 | -10/Materials | Discovered new exit (range 5) 180 | -10/Materials | Discovered new exit (range 15) 280 | -10/Materials | Entered Mines 281 | -10/Mines | Assembled infested the area 310 | -10/Mines | Build established: Mutant 316 | -10/Mines | Core integrity fell below 50% 345 | -10/Mines | Core integrity fell below 20% 350 | -10/Mines | Destroyed by D-53 Grenadier with Mini Grenade Launcher Last Messages --------------- squad. 00281_ K-01 Serf collects debris. 00294_ K-01 Serf destroyed. 00299_ Extracted 13 matter. 00300_ Acquired 13 matter. 00305_ as-71578 destroyed. 00305_ as-69611 destroyed. 00305_ as-45689 destroyed. 00305_ as-14088 destroyed. 00306_ as-02774 destroyed. 00320_ The unstable cave ceiling collapses. 00337_ An audio recording is triggered: "If you're looking for Megawrench, sorry but we're not in our cave right now, after essentially being evicted by all these Unaware tunnelers." 00340_ "Blame H1-IDC, who apparently didn't care about the consequences of repeatedly making a mess in Materials. Shooting at robots and generally destroying stuff raised the alert level high enough to trigger assault squads over in the main complex, and they later decided the best way to defend their interests would be to start expanding in this direction." 00350_ The unstable cave ceiling collapses. Map ----- +----------------------------------------------------+ | | | | | | | ?????????????????????????????????????????????????? | | ?????????????????????????????????????????????????? | | ?????????????????????????????????????????????????? | | ?????????????????????????????????????????????????? | | ?????????????????????????????????????????????????? | | ?????????????????????????????????????????????????? | | ?????????????????????????????????????????????????? | | ?????????????????????????????????????????????????? | | ?????????????????????????????????????????????????? | | ?????????????????????????????????????????????????? | | ?????????????????????????????????????????????????? | | ?????????????????????????????????????????????????? | | ?????????????????????????????????????????????????? | | ??????????????????????######?????????????????????? | | ?????????????????????## ##????????????????????? | | ????????????????????## ##???????????????????? | | ????????????????????# #???????????????????? | | ????????????????????# #???????????????????? | | ????????????????????## #???????????????????? | | ????????????????????## ##??????????????????? | | ????????????????????# #??????????????????? | | ?????????????????????# #???????????????????? | | ?????????????????????# @ #???????????????????? | | ????????????????????# # #???????????????????? | | ????????????????????# #??????????????????? | | ????????????????????# ##??????????????????? | | ????????????????????### ###???????????????????? | | ??????????????????????## ###?????????????????????? | | ???????????????????????# #???????????????????????? | | ???????????????????????# #??########?????????????? | | ???????????????????????# #??# #?????????????? | | ???????????????????????#d#??# #?????????????? | | ????????????????????#### #### #?????????????? | | ????????????????????# ## % #?????????????? | | ???????????????????## ## ! #?????????????? | | ???????????????????# # t ####??????????? | | ???????????????????# # # ##?????????? | | ???????????????????# # # # ##??????? | | ???????????????????## =%[ #??????? | | ???????????????????# #??????? | | ???????????????????# #????? | | ???????????????????## # #????? | | ???????????????????# ##### ????? | | ???????????????????## #??????????? | | ????????????????????## #??????????? | | ?????????????????????## # ##??????????? | | ??????????????????????############% ##???????????? | +----------------------------------------------------+ Best States ------------- Heat Dissipation 25 Energy Generation 10 Energy Capacity 250 Matter Stores 300 Matter Capacity 300 Sight Range 16 Terrain Scan Density 10 Evasion (%) 40 Item Schematics ----------------- None Robot Schematics ------------------ None Fabricated ------------ Nothing Alien Tech Used ----------------- None Achievements -------------- None Challenges ------------ None RPGLIKE | -11 -10 -10 --------- Run | Scr Mat Min Levels Raised . | . . . XP Earned 4200 | 3000 700 500 XP Spent 250 | . 250 . Upgrades 1 | . 1 . Inventory Capacity 1 | . 1 . Protomatter Created 21 | . 21 . Integrity Restored 63 | . 63 . Core 63 | . 63 . Protomatter Decayed 13 | . . 13 Game ------ Seed MatterTargetingExtractor Manual? 0 Play Time 00:05:56 Cumulative 5.9 hours Start 2019.12.21 @ 18:37:40 End 2019.12.21 @ 18:42:36 Sessions 1 Manual Loads 0 Difficulty Rogue Special Mode Winter2019/RPGLIKE Game No. 5 Rogue 5 Adventurer 0 Explorer 0 Win Type - Total 0 Types 0/0/0/0/0/0/0 Lore% 15 Gallery% 10 Achievement% 24 Wizard Run 0 Options --------- ASCII 0 Keyboard 1 Movement Vi Keybinds 0 Fullscreen 2 Font 18/SmallcapsGlow Map View 76x50 Tactical HUD 1 Map Filters NONE Filters NONE Steam 0 RUN: 6a230f6d-d6dc-428b-b4fa-e412679d4f52